bitfinex/quotes_BTCUSD_20260103
["timestamp","ask_amount","ask_price","bid_price","bid_amount"]
[1767401953384,0.01109262,90150.0,90147.0,0.000999]
[1767401953698,0.01109299,90147.0,90143.0,0.16258862]
[1767401953900,0.01109286,90148.0,90143.0,0.1736821]
[1767401954554,0.01109274,90149.0,90145.0,0.16263274]
[1767401955204,0.01109286,90148.0,90145.0,0.16263274]
[1767401955897,0.01109274,90149.0,90145.0,0.16263274]
[1767401956784,0.01109262,90150.0,90145.0,0.16263274]
[1767401957286,0.01109286,90148.0,90145.0,0.16263274]
[1767401958666,0.01109262,90150.0,90145.0,0.16263274]
[1767401958885,0.01109274,90149.0,90145.0,0.15480947]
[1767401959087,0.01109286,90148.0,90145.0,0.15480947]
[1767401959849,0.01109299,90147.0,90143.0,0.16263274]
[1767401960277,0.01109286,90148.0,90143.0,0.16263274]
[1767401960489,0.01109274,90149.0,90144.0,0.16263274]
[1767401960706,0.15546209,90152.0,90150.0,0.16263274]
[1767401960841,0.1,90152.0,90150.0,0.16263274]
[1767401961204,0.1,90152.0,90147.0,0.16263274]
[1767401961205,0.11109237,90152.0,90147.0,0.16263274]
[1767401961804,0.11109237,90152.0,90147.0,0.17372573]
[1767401962013,0.0110925,90151.0,90147.0,0.16263274]
[1767401962561,0.0110925,90151.0,90146.0,0.01109311]
[1767401962742,0.01109262,90150.0,90145.0,0.01109323]
[1767401962919,0.01109262,90150.0,90145.0,0.17372597]
[1767401963903,0.01109262,90150.0,90145.0,0.16263274]
[1767401964203,0.01109262,90150.0,90141.0,0.01109373]
[1767401964425,0.000999,90145.0,90142.0,0.0110936]
[1767401964635,0.06655609,90150.0,90143.0,0.01109348]
[1767401964987,0.06655609,90150.0,90142.0,0.0110936]
[1767401965197,0.01109286,90148.0,90142.0,0.0110936]
[1767401965416,0.01109286,90148.0,90143.0,0.01109348]
[1767401965786,0.01109299,90147.0,90142.0,0.0110936]
[1767401966133,0.01109299,90147.0,90142.0,0.17372634]
[1767401966266,0.01109286,90148.0,90142.0,0.16263274]
[1767401966494,0.01109299,90147.0,90142.0,0.17372634]
[1767401966699,0.01109299,90147.0,90142.0,0.16263274]
[1767401966919,0.01109286,90148.0,90143.0,0.01109348]
[1767401967126,0.01109299,90147.0,90142.0,0.17372634]
[1767401967325,0.01109311,90146.0,90142.0,0.16263274]
[1767401967559,0.01109299,90147.0,90142.0,0.17372634]
[1767401967776,0.01109286,90148.0,90142.0,0.17372634]
[1767401968382,0.01109286,90148.0,90143.0,0.01109348]
[1767401968551,0.01109286,90148.0,90143.0,0.18052274]
[1767401968871,0.01109299,90147.0,90143.0,0.16942926]
[1767401969020,0.01109311,90146.0,90143.0,0.16942926]
[1767401969216,0.01109299,90147.0,90141.0,0.18052299]
[1767401969822,0.01109286,90148.0,90142.0,0.0110936]
[1767401970024,0.01109299,90147.0,90142.0,0.0110495]
[1767401970655,0.01109286,90148.0,90143.0,0.1671173]
[1767401971937,0.01109286,90148.0,90143.0,0.01109348]
[1767401972761,0.0098269,90148.0,90143.0,0.01109348]
[1767401972968,0.0098269,90148.0,90142.0,0.0110495]
[1767401972969,0.01109299,90147.0,90141.0,0.01109373]
[1767401973177,0.0098269,90148.0,90141.0,0.01109373]
[1767401973445,0.01109286,90148.0,90142.0,0.06656163]
[1767401974277,0.01109286,90148.0,90143.0,0.01109348]
[1767401974517,0.01109274,90149.0,90144.0,0.16711718]
[1767401974733,0.01109286,90148.0,90144.0,0.15602382]
[1767401974962,0.01109286,90148.0,90143.0,0.01109348]
[1767401974963,0.05546293,90151.0,90143.0,0.06656087]
[1767401975242,0.07942871,90150.0,90144.0,0.01109336]
[1767401975390,0.0239656,90149.0,90144.0,0.16711718]
[1767401975741,0.03505834,90149.0,90144.0,0.15602382]
[1767401975942,0.01109274,90149.0,90144.0,0.15602382]
[1767401976156,0.0110925,90151.0,90144.0,0.15602382]
[1767401976458,0.02396585,90150.0,90145.0,0.01109323]
[1767401976670,0.02396585,90150.0,90146.0,0.01109311]
[1767401976799,0.03505847,90150.0,90144.0,0.16711718]
[1767401977011,0.02396585,90149.0,90145.0,0.01109323]
[1767401977219,0.03505859,90149.0,90144.0,0.16711718]
[1767401977415,0.01109274,90149.0,90144.0,0.16711718]
[1767401977617,0.01109262,90150.0,90144.0,0.16711718]
[1767401977839,0.03505872,90149.0,90144.0,0.16711718]
[1767401978041,0.01109274,90149.0,90144.0,0.16711718]
[1767401978220,0.01109262,90150.0,90144.0,0.15602382]
[1767401978432,0.02396611,90149.0,90144.0,0.16711718]
[1767401978637,0.02396611,90149.0,90145.0,0.01109323]
[1767401978840,0.02396611,90149.0,90145.0,0.15602382]
[1767401979322,0.01109262,90150.0,90145.0,0.16711705]
[1767401979515,0.02396627,90149.0,90145.0,0.16711705]
[1767401979720,0.0110925,90151.0,90145.0,0.16711705]
[1767401979721,0.11109237,90152.0,90146.0,0.01109311]
[1767401979924,0.02396628,90151.0,90146.0,0.01109311]
[1767401980383,0.02396628,90151.0,90147.0,0.01109299]
[1767401981029,0.02396628,90151.0,90148.0,0.06655708]
[1767401981229,0.0001508,90158.0,90155.0,0.16711582]
[1767401981417,0.0001508,90158.0,90155.0,0.15602382]
[1767401982057,0.0001508,90158.0,90155.0,0.16711582]
[1767401982195,0.0001508,90158.0,90157.0,0.15602382]
[1767401984614,0.02221065,90166.0,90161.0,0.01109127]
[1767401984615,0.01109065,90166.0,90161.0,0.01109127]
[1767401984814,0.01109065,90166.0,90161.0,0.01004817]
[1767401985066,0.01109077,90165.0,90160.0,0.01109139]
[1767401985497,0.01109065,90166.0,90161.0,0.01109127]
[1767401985682,0.01109065,90166.0,90160.0,0.01109139]
[1767401985886,0.01109065,90166.0,90158.0,0.06654982]
[1767401985887,0.01109077,90165.0,90158.0,0.06654982]
[1767401986109,0.01109077,90165.0,90159.0,0.01109151]
[1767401986253,0.01109077,90165.0,90157.0,0.16711558]
[1767401986254,0.01109102,90163.0,90157.0,0.16711558]
[1767401986661,0.01109102,90163.0,90158.0,0.01109163]
[1767401987272,0.0110909,90164.0,90157.0,0.16711558]
[1767401987468,0.01109114,90162.0,90157.0,0.16711558]
[1767401987740,0.01109102,90163.0,90157.0,0.01109176]
[1767401987959,0.01109139,90160.0,90155.0,0.16711582]
[1767401988188,0.01109139,90160.0,90152.0,0.01109237]
[1767401988189,0.01109151,90159.0,90152.0,0.01109237]
[1767401988381,0.01109176,90157.0,90151.0,0.0110925]
[1767401989083,0.01109151,90159.0,90154.0,0.01109213]
[1767401990627,0.06654871,90160.0,90155.0,0.011092]
[1767401990982,0.06654871,90160.0,90153.0,0.01109225]
[1767401990983,0.01109163,90158.0,90153.0,0.01109225]
[1767401991138,0.01109151,90159.0,90154.0,0.01109213]
[1767401992023,0.01109163,90158.0,90153.0,0.01109225]
[1767401992226,0.01109151,90159.0,90153.0,0.01109225]
[1767401992429,0.01109163,90158.0,90153.0,0.01109225]
[1767401993319,0.01109163,90158.0,90154.0,0.01109213]
[1767401994169,0.01109163,90158.0,90153.0,0.01109225]
[1767401995011,0.01109176,90157.0,90151.0,0.06655464]
[1767401995216,0.01109188,90156.0,90150.0,0.01109262]
[1767401995480,0.01109188,90156.0,90151.0,0.0110925]
[1767401995674,0.01109176,90157.0,90152.0,0.01109237]
[1767401996262,0.01109188,90156.0,90151.0,0.0110925]
[1767401996465,0.01109176,90157.0,90151.0,0.0110925]
[1767401996954,0.01109176,90157.0,90152.0,0.01109237]
[1767401997287,0.01109176,90157.0,90151.0,0.0110925]
[1767401997487,0.06654986,90158.0,90152.0,0.01109237]
[1767401997685,0.01109163,90158.0,90153.0,0.01109225]
[1767401998374,0.01109163,90158.0,90153.0,0.01104815]
[1767401998570,0.01109163,90158.0,90153.0,0.01109225]
[1767401999411,0.01109176,90157.0,90151.0,0.0110925]
[1767401999611,0.01109163,90158.0,90152.0,0.01109237]
[1767401999791,0.01109176,90157.0,90152.0,0.01109237]
[1767402000374,0.011092,90155.0,90150.0,0.01109262]
[1767402000597,0.01109213,90154.0,90149.0,0.01109274]
[1767402000803,0.011092,90155.0,90148.0,0.16711668]
[1767402001011,0.01109213,90154.0,90148.0,0.01109286]
[1767402001215,0.01109188,90156.0,90150.0,0.01109262]
[1767402001417,0.011092,90155.0,90148.0,0.01109286]
[1767402001620,0.011092,90155.0,90149.0,0.01109274]
[1767402002160,0.01109237,90152.0,90148.0,0.15774441]
[1767402002358,0.01109225,90153.0,90148.0,0.15774441]
[1767402002359,0.01109225,90153.0,90148.0,0.01109286]
[1767402002560,0.01109213,90154.0,90149.0,0.01109274]
[1767402002779,0.01109213,90154.0,90150.0,0.01112]
[1767402002780,0.18144953,90153.0,90150.0,0.01112]
[1767402003005,0.01109225,90153.0,90149.0,0.01112]
[1767402003210,0.01109213,90154.0,90149.0,0.01112]
[1767402003608,0.01109225,90153.0,90149.0,0.01112]
[1767402003815,0.06656075,90144.0,90135.0,0.06605841]
[1767402003963,0.01109348,90143.0,90138.0,0.15774441]
[1767402004165,0.01118521,90144.0,90138.0,0.16883851]
[1767402004395,0.01118521,90144.0,90140.0,0.15774441]
[1767402005299,9.185e-05,90144.0,90140.0,0.16883826]
[1767402005537,0.01118521,90144.0,90140.0,0.15774441]
[1767402006179,9.185e-05,90144.0,90140.0,0.16883826]
[1767402006398,9.185e-05,90144.0,90140.0,0.15774441]
[1767402006614,9.185e-05,90144.0,90140.0,0.16883826]
[1767402007264,9.185e-05,90144.0,90141.0,0.01109373]
[1767402007471,9.185e-05,90144.0,90141.0,0.15774441]
[1767402007891,0.01118521,90144.0,90141.0,0.15774441]
[1767402008121,9.185e-05,90144.0,90141.0,0.15774441]
[1767402008975,0.01118521,90144.0,90141.0,0.15774441]
[1767402009186,9.185e-05,90144.0,90141.0,0.15774441]
[1767402009392,0.01118521,90144.0,90141.0,0.15774441]
[1767402010029,0.01109397,90139.0,90132.0,0.05547407]
[1767402010236,0.000999,90141.0,90136.0,0.01109434]
[1767402010237,0.01109373,90141.0,90136.0,0.01109434]
[1767402010451,0.0110936,90142.0,90137.0,0.15774441]
[1767402010918,0.01109373,90141.0,90137.0,0.15774441]
[1767402011133,0.0110936,90142.0,90137.0,0.15774441]
[1767402011343,0.01118521,90144.0,90131.0,0.16883937]
[1767402011344,0.01209322,90137.0,90131.0,0.16883937]
[1767402011549,0.000999,90137.0,90131.0,0.16883937]
[1767402011752,0.01209322,90137.0,90133.0,0.15774441]
[1767402011997,0.01109422,90137.0,90133.0,0.15774441]
[1767402012172,0.0110941,90138.0,90133.0,0.15774441]
[1767402012782,0.01109422,90137.0,90133.0,0.15774441]
[1767402012986,0.01109397,90139.0,90133.0,0.15774441]
[1767402013207,0.01109385,90140.0,90134.0,0.168839]
[1767402013339,0.01109385,90140.0,90136.0,0.15774441]
[1767402014149,0.01109397,90139.0,90136.0,0.15774441]
[1767402014369,0.06656355,90140.0,90136.0,0.15774441]
[1767402014370,0.01109385,90140.0,90136.0,0.15774441]
[1767402015777,0.01109373,90141.0,90136.0,0.15774441]
[1767402015978,0.01109385,90140.0,90136.0,0.15774441]
[1767402017247,0.01109397,90139.0,90136.0,0.15774441]
[1767402017446,0.01109385,90140.0,90136.0,0.15774441]
[1767402017997,0.01109397,90139.0,90136.0,0.15774441]
[1767402020969,0.01109373,90141.0,90136.0,0.15774441]
[1767402021080,0.01109373,90141.0,90136.0,0.16883875]
[1767402021280,0.01109385,90140.0,90136.0,0.15774441]
[1767402021822,0.01109373,90141.0,90136.0,0.15774441]
[1767402022036,0.01109385,90140.0,90136.0,0.15774441]
[1767402023394,0.01109373,90141.0,90136.0,0.16883875]
[1767402023766,0.01109385,90140.0,90136.0,0.15774441]
[1767402024088,0.01109385,90140.0,90133.0,0.01109471]
[1767402024089,0.0110941,90138.0,90133.0,0.01109471]
[1767402024296,0.01109385,90140.0,90134.0,0.01109459]
[1767402024942,0.01109397,90139.0,90133.0,0.01109471]
[1767402025493,0.0110941,90138.0,90132.0,0.01109483]
[1767402025695,0.0110941,90138.0,90133.0,0.01109471]
[1767402025936,0.01109397,90139.0,90134.0,0.01109459]
[1767402026858,0.01109373,90141.0,90135.0,0.01109446]
[1767402027084,0.01109385,90140.0,90135.0,0.01109446]
[1767402027298,0.01109385,90140.0,90133.0,0.01109471]
[1767402027522,0.01109385,90140.0,90135.0,0.01109446]
[1767402027724,0.01109385,90140.0,90136.0,0.15774441]
[1767402027936,0.01109397,90139.0,90136.0,0.15774441]
[1767402028499,0.01109385,90140.0,90136.0,0.15774441]
[1767402029530,0.01109397,90139.0,90136.0,0.15774441]
[1767402030300,0.01109385,90140.0,90136.0,0.15774441]
[1767402030701,0.01109397,90139.0,90136.0,0.15774441]
[1767402031128,0.01109397,90139.0,90136.0,0.15674541]
[1767402033984,9.185e-05,90144.0,90139.0,0.01109397]
[1767402034182,9.185e-05,90144.0,90141.0,0.01109373]
[1767402034398,9.185e-05,90144.0,90141.0,0.18298479]
[1767402034792,0.01118521,90144.0,90141.0,0.17189106]
[1767402035023,9.185e-05,90144.0,90141.0,0.18298479]
[1767402035424,9.185e-05,90144.0,90141.0,0.17189106]
[1767402035625,9.185e-05,90144.0,90140.0,0.01109385]
[1767402036488,0.01118521,90144.0,90139.0,0.18298503]
[1767402036693,9.185e-05,90144.0,90140.0,0.18298491]
[1767402036898,9.185e-05,90144.0,90141.0,0.18298479]
[1767402037101,9.185e-05,90144.0,90141.0,0.17189106]
[1767402038025,9.185e-05,90144.0,90140.0,0.01109385]
[1767402038199,0.01118521,90144.0,90139.0,0.17189106]
[1767402038619,0.01118521,90144.0,90141.0,0.01109373]
[1767402038620,9.185e-05,90144.0,90141.0,0.01109373]
[1767402038840,0.01109299,90147.0,90141.0,0.17189106]
[1767402038841,0.01109311,90146.0,90141.0,0.17189106]
[1767402039054,0.01109299,90147.0,90145.0,0.17189106]
[1767402040600,0.01109286,90148.0,90145.0,0.17189106]
[1767402040818,0.01109286,90148.0,90147.0,0.000999]
[1767402041277,0.01109286,90148.0,90145.0,0.17189106]
[1767402041761,0.0665577,90148.0,90145.0,0.17189106]
[1767402043022,0.05546557,90146.0,90145.0,0.17189106]
[1767402043423,0.01109323,90145.0,90140.0,0.17189106]
[1767402044750,0.01109323,90145.0,90140.0,0.18298491]
[1767402045617,0.01109311,90146.0,90142.0,0.17189106]
[1767402045825,0.01109323,90145.0,90142.0,0.17189106]
[1767402050391,0.01109323,90145.0,90140.0,0.01109385]
[1767402051053,0.01109336,90144.0,90139.0,0.01109397]
[1767402051194,0.01109323,90145.0,90144.0,0.000999]
[1767402051547,0.01109299,90147.0,90144.0,0.000999]
[1767402051689,0.01109311,90146.0,90141.0,0.01109373]
[1767402051894,0.01109311,90146.0,90140.0,0.01109385]
[1767402052455,0.01109311,90146.0,90141.0,0.01109373]
[1767402052645,0.01109299,90147.0,90142.0,0.0110936]
[1767402053422,0.01109311,90146.0,90141.0,0.01109373]
[1767402053620,0.01109311,90146.0,90140.0,0.18298491]
[1767402053825,0.01109311,90146.0,90141.0,0.01109373]
[1767402054049,0.01109311,90146.0,90140.0,0.18298491]
[1767402054050,0.01109323,90145.0,90140.0,0.18298491]
[1767402054229,0.01109299,90147.0,90142.0,0.0110936]
[1767402054632,0.01109299,90147.0,90142.0,0.18298466]
[1767402054833,0.01109299,90147.0,90142.0,0.0110936]
[1767402055181,0.01109311,90146.0,90140.0,0.18298491]
[1767402055318,0.01109311,90146.0,90141.0,0.17189106]
[1767402055519,0.01109299,90147.0,90142.0,0.0110936]
[1767402055742,0.01109299,90147.0,90143.0,0.17189106]
[1767402056066,0.01109311,90146.0,90143.0,0.17189106]
[1767402060215,0.06655909,90146.0,90143.0,0.17189106]
[1767402061164,0.0222125,90151.0,90143.0,0.17189106]
[1767402061363,0.01109299,90147.0,90143.0,0.17189106]
[1767402062826,0.01009411,90146.0,90143.0,0.17189106]
[1767402063680,0.01109299,90147.0,90143.0,0.17189106]
[1767402063681,0.01109274,90149.0,90143.0,0.17189106]
[1767402063864,0.01109286,90148.0,90143.0,0.17189106]
[1767402064270,0.01109299,90147.0,90143.0,0.17189106]
[1767402064465,0.01109286,90148.0,90143.0,0.17189106]
[1767402064672,0.01109299,90147.0,90143.0,0.17189106]
[1767402064869,0.01109286,90148.0,90143.0,0.17089106]
[1767402065291,0.01109286,90148.0,90143.0,0.18198454]
[1767402065671,0.01109299,90147.0,90143.0,0.17089106]
[1767402066109,0.01109274,90149.0,90143.0,0.17089106]
[1767402066292,0.01109299,90147.0,90143.0,0.17089106]
[1767402066488,0.07767549,90151.0,90142.0,0.0110936]
[1767402066489,0.01112,90151.0,90150.0,0.16963399]
[1767402069321,0.01109139,90160.0,90151.0,0.22509596]
[1767402069437,0.02221163,90158.0,90152.0,0.18072636]
[1767402069753,0.01109176,90157.0,90152.0,0.16963399]
[1767402069953,0.01109188,90156.0,90152.0,0.16963399]
[1767402070174,0.01109176,90157.0,90152.0,0.18072636]
[1767402070370,0.06655247,90155.0,90152.0,0.16863499]
[1767402070571,0.011092,90155.0,90152.0,0.16863499]
[1767402070776,0.01109188,90156.0,90152.0,0.16863499]
[1767402071606,0.01109176,90157.0,90152.0,0.16863499]
[1767402071923,0.01109188,90156.0,90152.0,0.16863499]
[1767402072674,0.011092,90155.0,90152.0,0.16863499]
[1767402072827,0.01109188,90156.0,90152.0,0.16863499]
[1767402074302,0.011092,90155.0,90152.0,0.16863499]
[1767402074960,0.0665782,90158.0,90152.0,0.16863499]
[1767402075176,0.07766983,90158.0,90152.0,0.16863499]
[1767402075374,0.01109176,90157.0,90152.0,0.17972736]
[1767402075552,0.01109188,90156.0,90152.0,0.16863499]
[1767402075751,0.01109176,90157.0,90152.0,0.17972736]
[1767402076754,0.01109188,90156.0,90152.0,0.16863499]
[1767402077193,0.01109176,90157.0,90152.0,0.17972736]
[1767402077548,0.02221163,90158.0,90154.0,0.16963399]
[1767402078103,0.01109176,90157.0,90154.0,0.16963399]
[1767402079622,0.01109163,90158.0,90154.0,0.16963399]
[1767402079955,0.01109176,90157.0,90154.0,0.16963399]
[1767402082221,0.06655099,90157.0,90154.0,0.16963399]
[1767402082435,0.011092,90155.0,90151.0,0.16963399]
[1767402083038,0.06655099,90157.0,90151.0,0.18072649]
[1767402083039,0.05545923,90157.0,90151.0,0.18072649]
[1767402083241,0.05545923,90157.0,90150.0,0.01109262]
[1767402083242,0.01112,90165.0,90160.0,0.16963399]
[1767402083416,0.01112,90165.0,90161.0,0.18072526]
[1767402083835,0.01112,90165.0,90162.0,0.01109114]
[1767402084214,0.0110904,90168.0,90163.0,0.01109102]
[1767402085953,0.0110904,90168.0,90163.0,0.18072501]
[1767402086151,0.01109028,90169.0,90164.0,0.0110909]
[1767402086331,0.02221016,90170.0,90165.0,0.01109077]
[1767402086914,0.01109028,90169.0,90164.0,0.0110909]
[1767402087472,0.02221016,90170.0,90165.0,0.18072476]
[1767402087720,0.01109028,90169.0,90165.0,0.16963399]
[1767402088307,0.02221016,90170.0,90165.0,0.18072476]
[1767402088521,0.01108979,90173.0,90170.0,0.18380136]
[1767402088661,0.01108979,90173.0,90170.0,0.18280236]
[1767402089676,0.01009079,90173.0,90170.0,0.18280236]
[1767402091304,0.06554004,90173.0,90170.0,0.18180336]
[1767402092205,0.01009079,90173.0,90170.0,0.18180336]
[1767402093651,0.06554022,90173.0,90170.0,0.18180336]
[1767402094154,0.01108979,90173.0,90170.0,0.18180336]
[1767402094526,0.06653926,90173.0,90170.0,0.18180336]
[1767402095026,0.01109004,90171.0,90167.0,0.17308854]
[1767402095810,0.01108991,90172.0,90167.0,0.18417907]
[1767402096030,0.04691881,90171.0,90165.0,0.04180688]
[1767402096180,0.04691881,90171.0,90167.0,0.01109053]
[1767402096379,0.04691881,90171.0,90168.0,0.0110904]
[1767402096823,0.04691881,90171.0,90167.0,0.01109053]
[1767402097019,0.06668777,90176.0,90168.0,0.0110904]
[1767402097217,0.01108954,90175.0,90168.0,0.0110904]
[1767402097439,0.01124022,90176.0,90171.0,0.01109004]
[1767402097650,0.01108967,90174.0,90168.0,0.0110904]
[1767402097810,0.01108967,90174.0,90167.0,0.06654259]
[1767402097811,0.01108979,90173.0,90167.0,0.01109053]
[1767402098006,0.01108991,90172.0,90167.0,0.01109053]
[1767402098203,0.01109004,90171.0,90166.0,0.01109065]
[1767402098412,0.01108991,90172.0,90166.0,0.01109065]
[1767402098606,0.01109004,90171.0,90164.0,0.05545406]
[1767402098869,0.01108991,90172.0,90153.0,0.22184495]
[1767402098870,0.05544562,90179.0,90171.0,0.01109004]
[1767402099093,0.01108917,90178.0,90173.0,0.01108979]
[1767402099262,0.01108905,90179.0,90173.0,0.01108979]
[1767402099619,0.01157811,90181.0,90175.0,0.01108954]
[1767402099821,0.01157811,90181.0,90174.0,0.18417821]
[1767402100040,0.0004893,90181.0,90176.0,0.18417796]
[1767402100243,0.01157811,90181.0,90178.0,0.17308854]
[1767402100486,0.01157811,90181.0,90178.0,0.17208954]
[1767402101764,0.0004893,90181.0,90178.0,0.17208954]
[1767402101971,0.01157811,90181.0,90178.0,0.17208954]
[1767402102206,0.00053323,90181.0,90178.0,0.17208954]
[1767402102806,0.01162204,90181.0,90178.0,0.17208954]
[1767402102955,0.00053323,90181.0,90178.0,0.17208954]
[1767402103715,0.02220856,90183.0,90181.0,0.17308854]
[1767402103926,0.02220856,90183.0,90181.0,0.17256661]
[1767402104610,0.02220856,90183.0,90177.0,0.0110893]
[1767402104767,0.01108831,90185.0,90183.0,0.000999]
[1767402104959,0.01108819,90186.0,90183.0,0.000999]
[1767402105160,0.01108819,90186.0,90184.0,0.17308854]
[1767402105371,0.01108819,90186.0,90181.0,0.17308854]
[1767402105802,0.01108844,90184.0,90181.0,0.17308854]
[1767402105973,0.01108831,90185.0,90181.0,0.17308854]
[1767402106314,0.01108844,90184.0,90181.0,0.17308854]
[1767402106467,0.01108831,90185.0,90181.0,0.17308854]
[1767402106691,0.01108844,90184.0,90181.0,0.17308854]
[1767402108506,0.01108831,90185.0,90184.0,0.000999]
[1767402108762,0.01008928,90186.0,90184.0,0.000999]
[1767402108919,0.01008928,90186.0,90181.0,0.18417735]
[1767402109145,0.01108844,90184.0,90181.0,0.17308854]
[1767402109529,0.06553071,90186.0,90181.0,0.17308854]
[1767402109530,0.01108794,90188.0,90183.0,0.1841771]
[1767402109734,0.01108794,90188.0,90185.0,0.17308854]
[1767402110334,0.01108831,90185.0,90180.0,0.17308854]
[1767402110526,0.01108856,90183.0,90180.0,0.17308854]
[1767402110730,0.06653184,90183.0,90180.0,0.17308854]
[1767402110957,0.01108856,90183.0,90180.0,0.17308854]
[1767402111163,0.01109065,90166.0,90159.0,0.01109151]
[1767402111316,0.01108991,90172.0,90166.0,0.18517819]
[1767402111521,0.01109004,90171.0,90168.0,0.17308854]
[1767402111725,0.01108991,90172.0,90168.0,0.17308854]
[1767402112160,0.06653771,90175.0,90168.0,0.18417894]
[1767402112161,0.01108979,90173.0,90168.0,0.18417894]
[1767402112387,0.01108967,90174.0,90168.0,0.18417894]
[1767402112526,0.01108979,90173.0,90168.0,0.17308854]
[1767402112723,0.01108979,90173.0,90168.0,0.18417894]
[1767402112965,0.01108967,90174.0,90168.0,0.18417894]
[1767402113154,0.01108979,90173.0,90168.0,0.18417894]
[1767402113358,0.01108967,90174.0,90168.0,0.17308854]
[1767402114233,0.05544631,90178.0,90174.0,0.000999]
[1767402114404,0.01108893,90180.0,90175.0,0.01108954]
[1767402114567,0.01108,90182.0,90175.0,0.17308854]
[1767402114904,0.01108881,90181.0,90175.0,0.01108954]
[1767402115081,0.02216868,90182.0,90176.0,0.01108942]
[1767402115284,0.02216868,90182.0,90175.0,0.01108954]
[1767402115285,0.01108881,90181.0,90175.0,0.01108954]
[1767402116564,0.01108881,90181.0,90176.0,0.01108942]
[1767402116791,0.01157811,90181.0,90175.0,0.01108954]
[1767402117411,0.01108893,90180.0,90175.0,0.01108954]
[1767402117927,0.01108893,90180.0,90174.0,0.01108967]
[1767402120873,0.01108893,90180.0,90175.0,0.01108954]
[1767402121099,0.01108893,90180.0,90174.0,0.01108967]
[1767402121218,0.01108905,90179.0,90172.0,0.2396276]
[1767402121427,0.01108905,90179.0,90174.0,0.01108967]
[1767402121679,0.01108893,90180.0,90174.0,0.01108967]
[1767402122106,0.01108905,90179.0,90173.0,0.01108979]
[1767402122448,0.01108905,90179.0,90172.0,0.2396276]
[1767402122449,0.01108954,90175.0,90172.0,0.17308854]
[1767402122662,0.01108942,90176.0,90175.0,0.000999]
[1767402122998,0.01108954,90175.0,90172.0,0.17308854]
[1767402123448,0.01108979,90173.0,90169.0,0.1687059]
[1767402123656,0.06653905,90173.0,90169.0,0.1687059]
[1767402124054,0.01108991,90172.0,90169.0,0.1687059]
[1767402124319,0.01108991,90172.0,90159.0,0.2218718]
[1767402124320,0.16491714,90161.0,90151.0,0.1687059]
[1767402124494,0.01109213,90154.0,90151.0,0.1687059]
[1767402124667,0.01109336,90144.0,90134.0,0.01109459]
[1767402124867,0.17617543,90145.0,90144.0,0.000999]
[1767402125069,0.01109299,90147.0,90144.0,0.000999]
[1767402125477,0.17617543,90150.0,90143.0,0.01109348]
[1767402125701,0.0110925,90151.0,90143.0,0.01109348]
[1767402125900,4.388e-05,90150.0,90143.0,0.01109348]
[1767402126098,4.388e-05,90150.0,90144.0,0.01109336]
[1767402126308,0.01109274,90149.0,90142.0,0.0110936]
[1767402126503,0.01109274,90149.0,90143.0,0.01109348]
[1767402126721,0.0111365,90150.0,90143.0,0.01109348]
[1767402126887,0.0111365,90150.0,90144.0,0.01109336]
[1767402127285,0.0111365,90150.0,90140.0,0.01109385]
[1767402127286,0.01109286,90148.0,90140.0,0.01109385]
[1767402127489,0.01109299,90147.0,90141.0,0.01109373]
[1767402127914,0.01109299,90147.0,90140.0,0.01109385]
[1767402128249,0.01109311,90146.0,90139.0,0.01109397]
[1767402128457,0.01109299,90147.0,90140.0,0.01109385]
[1767402129911,0.01109311,90146.0,90139.0,0.01109397]
[1767402130247,0.01109323,90145.0,90138.0,0.0110941]
[1767402130447,0.01109323,90145.0,90139.0,0.01109397]
[1767402131183,0.01109323,90145.0,90138.0,0.0110941]
[1767402131504,0.01109323,90145.0,90139.0,0.01109397]
[1767402131707,0.01109336,90144.0,90137.0,0.01109422]
[1767402132138,0.01109323,90145.0,90139.0,0.01109397]
[1767402132276,0.01109311,90146.0,90139.0,0.01109397]
[1767402132473,0.01109299,90147.0,90140.0,0.01109385]
[1767402132673,0.01109323,90145.0,90138.0,0.0110941]
[1767402132881,0.01109323,90145.0,90139.0,0.01109397]
[1767402133296,0.01109323,90145.0,90138.0,0.0110941]
[1767402133297,0.01109336,90144.0,90138.0,0.0110941]
[1767402133689,0.01109336,90144.0,90137.0,0.01109422]
[1767402134313,0.01109323,90145.0,90138.0,0.0110941]
[1767402134670,0.01109336,90144.0,90138.0,0.0110941]
[1767402135230,0.01109323,90145.0,90139.0,0.01109397]
[1767402135430,0.01109336,90144.0,90138.0,0.0110941]
[1767402135626,0.01109323,90145.0,90138.0,0.0110941]
[1767402135832,0.01109336,90144.0,90137.0,0.01109422]
[1767402136036,0.01109336,90144.0,90135.0,0.01109446]
[1767402136037,0.01109348,90143.0,90135.0,0.01109446]
[1767402136375,0.01109348,90143.0,90136.0,0.01109434]
[1767402136514,0.01109336,90144.0,90138.0,0.0110941]
[1767402137079,0.01109348,90143.0,90137.0,0.01109422]
[1767402137357,0.0110936,90142.0,90136.0,0.01109434]
[1767402137599,0.01109348,90143.0,90137.0,0.01109422]
[1767402137842,0.01109336,90144.0,90138.0,0.0110941]
[1767402138312,0.0110936,90142.0,90136.0,0.01109434]
[1767402138463,0.01109348,90143.0,90137.0,0.01109422]
[1767402138662,0.01109373,90141.0,90134.0,0.01109459]
[1767402138848,0.0110936,90142.0,90136.0,0.01109434]
[1767402139043,0.0110936,90142.0,90126.0,0.0001508]
[1767402139044,0.0110941,90138.0,90126.0,0.0001508]
[1767402139253,0.17617543,90144.0,90126.0,0.0001508]
[1767402139254,0.01109496,90131.0,90126.0,0.0001508]
[1767402139692,0.01109483,90132.0,90126.0,0.0001508]
[1767402140004,0.01109483,90132.0,90126.0,0.01124637]
[1767402140855,0.01109496,90131.0,90126.0,0.0001508]
[1767402141148,0.01109483,90132.0,90126.0,0.01124637]
[1767402141369,0.01109471,90133.0,90127.0,0.01109545]
[1767402141776,0.01109459,90134.0,90128.0,0.02221533]
[1767402142090,0.01109471,90133.0,90128.0,0.01112]
[1767402142268,0.18727014,90133.0,90128.0,0.01112]
[1767402142450,0.01109471,90133.0,90128.0,0.01112]
[1767402142659,0.01109483,90132.0,90128.0,0.01112]
[1767402143228,0.01109496,90131.0,90128.0,0.01112]
[1767402143628,0.01109483,90132.0,90128.0,0.01112]
[1767402143869,0.01109471,90133.0,90128.0,0.01112]
[1767402145530,0.01109459,90134.0,90128.0,0.01112]
[1767402145925,0.01109446,90135.0,90129.0,0.0110952]
[1767402146085,0.01109434,90136.0,90129.0,0.0110952]
[1767402146272,0.01109446,90135.0,90128.0,0.02221533]
[1767402146472,0.01109446,90135.0,90129.0,0.0110952]
[1767402146696,0.01109434,90136.0,90130.0,0.01109508]
[1767402147131,0.01109434,90136.0,90129.0,0.0110952]
[1767402147273,0.01109446,90135.0,90129.0,0.0110952]
[1767402148366,0.01109446,90135.0,90128.0,0.02221533]
[1767402148690,0.01109459,90134.0,90128.0,0.02221533]
[1767402148890,0.01109459,90134.0,90129.0,0.0110952]
[1767402149378,0.01109459,90134.0,90128.0,0.02221533]
[1767402149534,0.01109471,90133.0,90128.0,0.01112]
[1767402150315,0.01109459,90134.0,90128.0,0.01112]
[1767402150650,0.01109471,90133.0,90128.0,0.01112]
[1767402150819,0.01109471,90133.0,90128.0,0.02221533]